bitfinex-derivatives/quotes_ETHF0:USTF0_20251013
["timestamp","ask_amount","ask_price","bid_price","bid_amount"]
[1760317386067,3.19998046,4130.4,4130.2,0.43541]
[1760317386274,3.18013671,4130.3,4130.2,1.06272]
[1760317386470,3.2078,4130.5,4130.4,1.0627]
[1760317386670,0.00169573,4130.9,4130.8,0.43535]
[1760317386865,3.2078,4132.6,4132.5,0.43517]
[1760317387065,0.6216,4132.5,4131.6,3.2078]
[1760317387265,3.2078,4132.1,4131.5,0.43527]
[1760317387475,3.2078,4132.1,4131.6,0.43526]
[1760317387777,3.13885002,4132.0,4131.9,0.6273]
[1760317387972,0.00262073,4132.1,4132.0,1.06253]
[1760317388366,0.43525,4131.8,4131.6,0.00206443]
[1760317388577,0.6216,4131.7,4131.6,0.00206443]
[1760317388772,0.6216,4131.6,4131.0,0.43533]
[1760317388977,0.6216,4131.3,4131.0,0.43533]
[1760317389274,3.08904232,4131.5,4131.3,1.0626]
[1760317389478,6.29684232,4131.9,4131.5,0.43527]
[1760317389675,3.08904232,4131.6,4131.5,0.43527]
[1760317389872,0.43529,4131.4,4130.8,3.2078]
[1760317390070,1.05689,4131.4,4130.8,3.2078]
[1760317390379,0.6216,4131.2,4130.8,3.2078]
[1760317390575,0.6216,4131.2,4131.1,0.43532]
[1760317390878,3.1527475,4131.1,4130.9,0.43534]
[1760317391074,3.73683501,4131.2,4130.9,0.43534]
[1760317391274,3.8294,4132.5,4131.2,1.08829]
[1760317391473,3.8294,4132.5,4131.9,0.43523]
[1760317391678,0.6216,4131.9,4130.5,3.2078]
[1760317391877,0.43537,4130.7,4130.5,3.2078]
[1760317392082,0.6216,4130.8,4129.0,0.2496]
[1760317392376,0.6216,4130.8,4128.9,3.2078]
[1760317392377,0.6216,4129.3,4128.9,3.2078]
[1760317392669,0.6216,4129.3,4128.3,3.2078]
[1760317392670,3.09500743,4129.3,4128.3,3.2078]
[1760317392876,3.09500743,4129.3,4128.8,3.2078]
[1760317393180,0.6216,4128.8,4128.0,0.43565]
[1760317393473,0.4356,4128.5,4127.8,3.2078]
[1760317393679,3.77154978,4128.7,4127.8,3.2078]
[1760317393976,0.6216,4128.3,4128.1,0.43564]
[1760317394170,0.6216,4128.5,4127.8,3.64346]
[1760317394477,0.6216,4128.1,4127.9,0.43565]
[1760317394780,3.17751141,4128.5,4128.3,0.43561]
[1760317395169,3.21854832,4128.6,4128.3,3.8351]
[1760317395476,0.62440762,4128.8,4128.5,0.4356]
[1760317395674,0.62440762,4128.8,4128.3,3.8351]
[1760317395675,0.00280762,4128.8,4128.7,0.6273]
[1760317395872,3.2078,4129.6,4129.5,0.43549]
[1760317396175,3.14395646,4129.5,4129.3,0.4355]
[1760317396768,3.2078,4130.2,4130.0,0.43544]
[1760317397073,0.6216,4130.9,4130.3,0.43541]
[1760317397265,0.61386613,4130.8,4130.7,1.06266]
[1760317397471,0.61386613,4130.8,4130.7,1.06504193]
[1760317397671,0.0029026,4130.9,4130.8,0.6273]
[1760317398166,0.85520386,4132.0,4131.1,0.6273]
[1760317398371,0.85520386,4132.0,4131.0,0.2496]
[1760317398372,0.61427372,4131.9,4131.3,3.2078]
[1760317398574,0.85520386,4132.3,4132.1,0.43522]
[1760317398778,0.61427756,4132.2,4132.1,0.43522]
[1760317398975,0.61427756,4132.2,4132.1,1.06252]
[1760317399177,0.85520386,4133.2,4131.9,1.7154]
[1760317399477,0.61473747,4133.1,4132.9,3.2078]
[1760317399673,3.07967337,4133.2,4132.4,0.43519]
[1760317399674,1.23633747,4133.0,4132.4,0.43519]
[1760317399978,3.07967337,4133.0,4132.6,0.43516]
[1760317400283,0.00211433,4133.0,4132.8,1.06244]
[1760317400579,0.00211433,4133.0,4132.2,3.2078]
[1760317400580,3.70978051,4132.9,4132.2,3.2078]
[1760317400874,0.6216,4131.8,4131.1,3.64312]
[1760317401182,3.15632967,4131.7,4131.1,3.2078]
[1760317401381,3.15632967,4131.7,4131.6,3.2078]
[1760317401678,3.15632967,4131.7,4131.1,0.6273]
[1760317401679,0.6043,4132.0,4131.5,0.43528]
[1760317401870,3.2078,4132.1,4131.8,0.43525]
[1760317402067,0.6043,4132.6,4131.8,0.5651]
[1760317402275,3.07418897,4132.0,4131.2,3.2078]
[1760317402482,0.43526,4131.7,4131.2,3.2078]
[1760317402676,0.6043,4131.9,4131.2,3.2078]
[1760317402871,3.13805521,4131.6,4131.2,3.2078]
[1760317403179,0.6043,4131.6,4131.2,3.2078]
[1760317403375,0.43527,4131.6,4131.2,3.2078]
[1760317403573,0.6043,4131.4,4131.2,3.2078]
[1760317403769,0.43533,4131.1,4130.7,3.21018193]
[1760317403983,0.6043,4130.8,4130.7,0.00238193]
[1760317404184,0.43542,4130.3,4129.7,3.2078]
[1760317404379,0.43542,4130.3,4128.7,1.08893]
[1760317404380,0.43549,4129.6,4128.8,0.43556]
[1760317404568,0.6043,4129.8,4129.1,0.43552]
[1760317404879,0.6043,4129.4,4129.1,0.43552]
[1760317405079,0.00200417,4129.4,4129.3,1.00061]
[1760317405577,0.6043,4130.8,4129.3,0.7947]
[1760317405769,0.6043,4130.8,4130.3,0.4354]
[1760317405971,3.14032147,4130.6,4130.4,3.2078]
[1760317406170,0.6043,4131.7,4130.5,0.5651]
[1760317406374,3.2078,4132.0,4130.5,0.5651]
[1760317406375,3.2078,4132.0,4131.0,3.2078]
[1760317406577,3.14855697,4131.3,4131.2,1.00041]
[1760317406774,3.14855697,4131.6,4131.5,1.00038]
[1760317406976,0.00215841,4132.0,4131.7,0.43526]
[1760317407284,3.16401765,4131.9,4131.7,0.43526]
[1760317407477,3.16401765,4131.9,4131.5,1.00038]
[1760317407874,3.16401765,4131.9,4131.3,3.2078]
[1760317408082,0.6043,4131.6,4130.9,0.43533]
[1760317408278,3.64306,4131.7,4130.1,3.2078]
[1760317408279,3.2078,4131.7,4130.1,3.2078]
[1760317408478,1.08813,4131.8,4130.2,0.43541]
[1760317408479,0.6043,4130.6,4130.2,0.43541]
[1760317408680,3.8121,4131.2,4130.1,3.64322]
[1760317408870,3.11582972,4130.5,4130.4,0.5651]
[1760317409078,3.8121,4131.2,4130.4,0.5651]
[1760317409079,3.15668048,4130.6,4130.5,0.43539]
[1760317409272,3.15668048,4131.1,4130.1,3.2078]
[1760317409478,3.8121,4131.9,4130.9,0.43533]
[1760317409786,3.15668048,4131.5,4131.2,3.2078]
[1760317409986,1.03956,4131.8,4131.2,3.6431]
[1760317410174,3.2078,4131.9,4131.3,0.4353]
[1760317410375,3.18789312,4131.8,4131.0,0.43532]
[1760317410683,0.6043,4131.5,4130.7,3.2078]
[1760317410882,3.2078,4131.4,4130.7,3.2078]
[1760317411077,0.43535,4130.8,4130.2,3.2078]
[1760317411283,1.03967,4130.7,4130.2,3.2078]
[1760317411486,4.25154345,4130.7,4130.2,3.2078]
[1760317411681,3.21187345,4130.8,4130.2,3.2078]
[1760317411877,0.6043,4130.8,4130.2,3.2078]
[1760317412179,0.6043,4130.5,4129.5,0.5651]
[1760317412585,3.1751131,4130.4,4130.2,3.64321]
[1760317412885,3.6103831,4131.6,4130.3,0.5651]
[1760317413081,3.6103831,4131.6,4130.0,0.2296]
[1760317413082,0.4353,4131.3,4130.7,1.00045]
[1760317413283,3.2078,4131.4,4130.8,0.43535]
[1760317413483,3.6431,4131.4,4130.8,0.43535]
[1760317413876,3.79145,4131.3,4130.8,0.43535]
[1760317414187,3.18715,4131.3,4130.5,3.2078]
[1760317414587,0.6043,4130.6,4130.5,3.2078]
[1760317414982,3.75042071,4130.6,4130.5,3.2078]
[1760317415184,0.4354,4130.4,4129.9,0.43544]
[1760317415483,3.1035424,4130.3,4129.8,3.2078]
[1760317415787,1.03973,4130.1,4129.6,0.43548]
[1760317415982,3.1035424,4130.4,4129.3,3.4374]
[1760317415983,3.2078,4130.3,4129.9,0.43544]
[1760317416183,4.24751,4130.3,4129.8,3.2078]
[1760317416487,3.7301491,4130.2,4129.8,3.2078]
[1760317416694,0.6043,4129.9,4129.8,3.2078]
[1760317416881,3.8121,4130.3,4129.8,3.64325]
[1760317417080,3.13048322,4129.9,4129.8,3.64325]
[1760317417380,0.43537,4130.7,4129.8,4.20835]
[1760317417584,0.6043,4130.8,4129.8,3.7729]
[1760317417786,3.13048322,4130.6,4129.8,3.7729]
[1760317417984,1.03969,4130.5,4130.0,0.43543]
[1760317418288,0.6043,4130.1,4129.8,3.2078]
[1760317418487,3.81444726,4130.4,4129.9,0.43544]
[1760317418690,0.6043,4129.9,4129.8,3.2078]
[1760317419077,3.21014726,4130.3,4130.2,1.00052]
[1760317419287,3.20995841,4132.0,4130.7,0.5651]
[1760317419485,0.00215841,4132.0,4131.9,0.5651]
[1760317419887,0.6043,4131.9,4131.7,3.2078]
[1760317420090,0.6043,4131.9,4131.6,0.43527]
[1760317420393,3.12830177,4131.8,4131.7,0.43525]
[1760317420789,3.12830177,4131.8,4131.7,1.00035]
[1760317420990,0.00215841,4132.0,4131.9,1.00034]
[1760317421288,3.74119826,4131.9,4131.6,0.43527]
[1760317421483,3.13689826,4131.9,4131.4,3.2078]
[1760317421684,0.6043,4131.8,4131.4,0.43528]
[1760317421887,0.6043,4131.8,4131.2,3.64311]
[1760317422091,0.43529,4131.5,4130.8,0.43535]
[1760317422287,0.43529,4131.5,4130.7,3.2078]
[1760317422492,3.19122699,4131.4,4131.3,3.7729]
[1760317422689,0.00215841,4132.0,4131.9,0.43524]
[1760317422991,3.19500321,4131.9,4131.3,3.2078]
[1760317423192,0.43525,4131.8,4131.3,3.2078]
[1760317423395,0.43525,4131.8,4130.8,3.2078]
[1760317423396,1.03955,4131.8,4130.8,3.2078]
[1760317423694,3.19500321,4131.7,4131.5,0.43527]
[1760317424195,3.77670321,4131.7,4131.4,0.43528]
[1760317424398,0.00215841,4132.0,4131.6,0.5849]
[1760317424689,3.21404294,4131.9,4131.6,0.5849]
[1760317425085,0.00215841,4132.0,4131.6,0.5849]
[1760317425086,0.00215841,4132.0,4131.9,0.5849]
[1760317425286,1.08744,4134.5,4131.6,0.2476]
[1760317425287,0.43504,4133.8,4131.6,13.28118264]
[1760317425595,3.2078,4133.9,4133.6,0.43505]
[1760317425596,3.07492879,4133.7,4133.6,0.43505]
[1760317426092,3.2078,4134.4,4133.8,0.5849]
[1760317426292,3.21073867,4134.4,4133.8,0.00270942]
[1760317426593,3.7895,4133.9,4133.8,0.00270942]
[1760317426791,3.2078,4133.9,4133.8,0.00270942]
[1760317427193,6.35154448,4133.9,4133.8,0.00270942]
[1760317427590,6.35154448,4133.9,4133.8,1.02264942]
[1760317427892,6.93324448,4133.9,4133.8,0.00270942]
[1760317430200,6.35154448,4133.9,4133.8,0.00270942]
[1760317430601,6.93324448,4133.9,4133.8,0.00270942]
[1760317431102,0.5817,4133.8,4132.4,3.2078]
[1760317431302,3.64292,4133.1,4132.4,3.2078]
[1760317431614,3.76814036,4133.0,4132.4,0.43518]
[1760317432105,0.6135,4132.7,4132.5,0.43517]
[1760317432305,3.18644036,4133.0,4132.4,3.21063164]
[1760317432502,1.04867,4132.5,4132.4,0.00283164]
[1760317433008,4.22183634,4132.5,4132.4,0.00283164]
[1760317434102,3.17316634,4132.5,4131.1,3.2078]
[1760317434405,0.6135,4131.6,4131.1,3.2078]
[1760317434602,0.6135,4131.3,4130.8,0.43535]
[1760317434908,0.43532,4131.2,4130.6,0.43537]
[1760317435101,0.43533,4131.1,4130.6,0.43809426]
[1760317435307,0.43535,4130.8,4130.6,0.00272426]
[1760317435604,3.78135616,4130.7,4130.6,0.00272426]
[1760317438004,3.78135616,4130.7,4129.1,3.2078]
[1760317438005,0.8316,4130.4,4129.1,3.2078]
[1760317438206,0.6135,4129.8,4129.4,0.4355]
[1760317438403,0.43546,4129.9,4129.4,0.4355]
[1760317438603,0.6135,4129.6,4129.2,0.43552]
[1760317438804,0.6135,4129.3,4129.2,0.00189985]
[1760317439210,3.78315881,4129.3,4129.2,0.00189985]
[1760317439907,3.16965881,4129.3,4129.2,1.03761985]
[1760317440210,3.78315881,4129.3,4129.2,0.00189985]
[1760317440504,41.4135,4129.3,4129.2,0.00189985]
[1760317440911,44.52247618,4129.3,4129.2,0.00189985]
[1760317441106,0.43554,4129.0,4128.0,3.2078]
[1760317441306,0.43554,4129.0,4127.4,0.8314]
[1760317441307,3.2078,4128.3,4127.4,4.0392]
[1760317441516,0.6135,4128.2,4127.8,0.43566]
[1760317441706,3.10603026,4128.2,4127.4,3.808]
[1760317442109,0.6135,4128.1,4127.8,0.43566]
[1760317442410,3.13050129,4128.0,4127.8,0.43566]
[1760317443213,3.13050129,4128.0,4127.9,0.6002]
[1760317443609,3.13050129,4128.0,4127.4,3.20932397]
[1760317443610,0.6135,4128.0,4127.4,3.20932397]
[1760317443811,0.6135,4128.0,4127.4,0.00152397]
[1760317443812,0.6135,4127.5,4127.4,0.00152397]
[1760317444011,5.16343624,4127.5,4127.4,0.00152397]
[1760317444210,3.73245775,4127.5,4127.4,0.00152397]
[1760317444407,3.11895775,4127.5,4127.4,0.00152397]
[1760317444809,3.73245775,4127.8,4127.5,0.4357]
[1760317445007,0.00194449,4128.2,4127.9,0.43565]
[1760317445203,0.00194449,4128.2,4127.6,3.2078]
[1760317445204,4.55188073,4128.2,4127.6,3.2078]
[1760317445411,3.08295378,4127.8,4127.6,0.43568]
[1760317445713,7.75773624,4127.7,4127.4,0.00152397]
[1760317446218,7.75773624,4127.7,4126.3,1.08958]
[1760317446219,0.43582,4126.5,4126.3,3.2078]
[1760317446509,8.26436248,4126.4,4125.7,4.24388]
[1760317446710,7.65086248,4126.4,4125.7,3.808]
[1760317446913,3.10092624,4126.4,4126.3,0.6002]
[1760317447210,0.6135,4127.7,4127.6,0.43569]
[1760317447513,3.16869559,4127.0,4126.9,0.43576]
[1760317447711,3.78219559,4127.0,4126.9,0.43576]
[1760317447915,7.75773624,4127.3,4127.2,0.43573]
[1760317448219,3.2078,4127.9,4127.6,0.43568]
[1760317448414,0.6135,4127.8,4127.6,0.43568]
[1760317448716,3.79907118,4127.6,4127.4,0.4357]
[1760317448914,3.18557118,4127.8,4127.1,3.2078]
[1760317448915,3.18557118,4127.8,4127.7,0.43568]
[1760317449109,3.18557118,4127.8,4126.6,3.808]
[1760317449110,0.6135,4127.4,4126.6,3.808]
[1760317449413,0.6135,4127.2,4126.6,3.2078]
[1760317449815,3.13892249,4127.1,4126.9,1.03596]
[1760317450015,44.0078,4127.9,4127.5,0.4357]
[1760317450219,44.0078,4127.9,4126.8,0.6002]
[1760317450220,44.0078,4127.9,4127.7,0.43567]
[1760317450415,3.72209392,4127.8,4127.7,0.43567]
[1760317450714,0.6135,4127.7,4126.9,1.08942]
[1760317450915,0.6135,4127.7,4127.6,0.43569]
[1760317451220,0.6135,4127.5,4126.6,3.2078]
[1760317451712,45.34993624,4127.6,4127.3,0.6002]
[1760317451713,3.15465755,4127.4,4127.3,0.6002]
[1760317451922,40.8,4127.6,4127.3,0.6002]
[1760317451923,40.8,4127.6,4127.4,0.43571]
[1760317452216,3.2078,4127.9,4127.4,0.6002]
[1760317452419,3.8213,4127.9,4127.4,0.6002]
[1760317452618,3.15961093,4127.5,4127.4,1.03591]
[1760317452810,3.15961093,4127.8,4127.7,0.43568]
[1760317453008,3.8213,4127.9,4127.7,0.43568]
[1760317453221,3.11409525,4127.8,4127.7,0.43568]
[1760317453613,3.72759525,4127.8,4127.7,0.43568]
[1760317454617,3.72759525,4127.8,4127.1,3.2078]
[1760317454916,4.54993624,4127.7,4127.5,0.4357]
[1760317455223,3.16957365,4127.6,4127.5,0.4357]
[1760317455421,3.16957365,4127.6,4127.5,1.0359]
[1760317455615,3.78307365,4127.6,4127.5,0.4357]
[1760317455820,3.16957365,4127.9,4127.3,0.43572]
[1760317456121,4.98558624,4128.0,4127.3,0.43572]
[1760317456122,4.54993624,4128.0,4127.9,0.43566]
[1760317456318,0.00194449,4128.2,4127.3,1.68951]
[1760317456622,0.00194449,4128.2,4128.0,0.43564]
[1760317456812,3.20444552,4128.1,4128.0,1.03584]
[1760317457012,3.2078,4128.9,4128.8,1.03576]
[1760317457317,3.2078,4129.4,4128.8,0.6002]
[1760317457514,3.2078,4129.4,4129.3,1.03571]
[1760317457816,3.2078,4129.9,4129.0,0.2312]
[1760317458012,3.82395179,4129.9,4129.5,0.43549]
[1760317458209,0.6135,4129.6,4129.5,0.43549]
[1760317458416,0.6135,4129.6,4129.0,0.00194449]
[1760317458417,0.6135,4129.4,4129.0,0.00194449]
[1760317458612,5.16343624,4129.1,4129.0,0.00194449]
[1760317459013,8.27304131,4129.1,4129.0,0.00194449]
[1760317459317,8.27304131,4129.1,4129.0,1.03768449]
[1760317459318,3.10960507,4129.1,4129.0,1.03768449]
[1760317459510,8.27304131,4129.1,4129.0,0.00194449]
[1760317459710,5.16343624,4129.1,4129.0,0.00194449]
[1760317459915,0.6135,4128.3,4128.0,3.2078]
[1760317460116,4.54993624,4128.4,4128.2,0.43562]
[1760317460311,0.6135,4128.9,4128.0,3.2078]
[1760317460312,0.6135,4128.9,4128.1,0.6002]
[1760317460511,3.64335,4129.0,4128.2,0.43563]
[1760317460715,0.6135,4128.6,4128.4,0.4356]
[1760317461318,0.6135,4128.6,4128.0,4.0392]
[1760317461319,0.6135,4128.9,4128.5,0.43559]
[1760317461527,0.6135,4128.9,4128.0,4.0392]
[1760317461528,0.6135,4128.9,4128.3,0.43561]
[1760317461724,0.6008,4128.8,4128.4,0.4356]
[1760317461922,3.2078,4129.0,4128.0,4.0392]
[1760317461923,3.2078,4129.0,4128.9,0.43555]
[1760317462113,0.6008,4128.9,4128.5,3.64339]
[1760317462317,3.20356979,4128.7,4128.5,3.2078]
[1760317462616,0.43559,4128.6,4128.1,0.43564]
[1760317462816,0.6008,4128.5,4128.1,0.43564]
[1760317463017,0.6008,4128.5,4127.6,0.43569]
[1760317463018,0.6008,4128.0,4127.6,0.43569]
[1760317463418,0.6008,4127.8,4127.4,3.64351]
[1760317463613,3.52366186,4127.9,4127.4,3.64351]
[1760317463818,4.54993624,4128.2,4127.4,3.64351]
[1760317463819,1.0365,4127.6,4127.4,3.2078]
[1760317464023,8.2387281,4127.7,4126.8,0.5843]
[1760317464226,3.21504325,4127.5,4126.8,0.5843]
[1760317464525,3.2078,4127.4,4126.7,3.2078]
[1760317464728,0.6008,4127.2,4126.9,0.43576]
[1760317464923,1.03654,4127.2,4126.7,3.64358]
[1760317465124,3.21504325,4127.1,4126.7,3.64358]
[1760317465320,0.6008,4126.8,4126.2,0.5843]
[1760317465526,0.00234966,4126.8,4126.2,0.5843]
[1760317465823,3.15426435,4126.7,4126.6,0.4358]
[1760317466022,0.00234966,4126.8,4126.6,3.6436]
[1760317466223,0.00234966,4126.8,4126.7,0.5843]
[1760317466418,3.434,4128.5,4126.8,1.08943]
[1760317466419,0.43563,4128.2,4126.8,1.08943]
[1760317466624,0.43563,4128.2,4127.1,3.2078]
[1760317466625,0.6008,4128.2,4127.1,3.2078]
[1760317466822,0.43567,4127.8,4127.3,0.43571]
[1760317467126,3.2078,4127.5,4127.2,0.43573]
[1760317467326,3.2078,4127.5,4127.3,1.02002]
[1760317467527,3.09479162,4127.4,4127.3,1.0221914]
[1760317467825,3.69559162,4127.4,4127.3,0.0021714]
[1760317468332,3.09479162,4127.4,4127.3,0.0021714]
[1760317468831,3.69559162,4127.4,4127.3,0.0021714]
[1760317469417,3.09479162,4127.4,4127.3,0.0021714]
[1760317469624,3.09479162,4127.4,4127.3,0.5864714]
[1760317470827,0.00251712,4127.5,4127.4,1.02001]
[1760317471122,3.2078,4128.8,4128.6,0.43558]
[1760317471330,4.54993624,4128.7,4127.8,0.5843]
[1760317471523,0.6008,4128.4,4127.5,3.4346]
[1760317471723,0.6008,4127.9,4127.3,0.0021714]
[1760317471928,0.6008,4127.4,4127.3,0.0021714]
[1760317472129,0.60356227,4127.4,4127.3,0.0021714]
[1760317472329,3.80516705,4127.4,4127.3,0.0021714]
[1760317475034,0.6008,4126.9,4125.9,3.64367]
[1760317475334,0.136,4127.0,4126.2,0.43583]
[1760317475335,4.98573624,4126.6,4126.2,0.43583]
[1760317475523,0.6008,4126.5,4126.2,0.43583]
[1760317475723,1.03662,4126.4,4126.0,0.43585]
[1760317475928,0.6008,4126.3,4126.1,0.43584]
[1760317476128,3.17982829,4126.3,4126.1,0.43584]
[1760317476328,0.43582,4126.5,4126.3,0.43582]
[1760317476329,0.6008,4126.5,4126.3,0.43582]
[1760317476529,4.54993624,4126.6,4126.3,0.43582]
[1760317476530,3.80288183,4126.4,4126.3,0.43582]
[1760317476729,40.8,4126.7,4126.3,1.02013]
[1760317476943,3.20208183,4126.5,4126.3,0.43583]
[1760317477232,3.20208183,4126.6,4126.4,0.43581]
[1760317477437,3.2078,4126.8,4126.7,0.43579]
[1760317477737,6.36307273,4126.8,4126.7,0.43579]
[1760317478332,3.15527273,4126.8,4126.7,1.02009]
[1760317478937,3.81136227,4127.4,4127.3,0.43572]
[1760317479135,3.21056227,4127.4,4127.3,1.02002]
[1760317479438,0.00276227,4127.4,4127.3,1.02002]
[1760317480436,0.00276227,4127.4,4127.3,0.43572]
[1760317481639,0.6008,4128.4,4127.5,0.2268]
[1760317481828,3.2078,4128.5,4128.2,0.43562]
[1760317482027,3.08506422,4128.4,4127.9,1.08916]
[1760317482228,3.2078,4129.0,4128.9,0.5843]
[1760317482739,3.20983116,4129.0,4128.9,0.5864473]
[1760317483944,0.00203116,4129.0,4128.9,0.5864473]
[1760317484636,0.00203116,4129.0,4128.9,3.7942473]
[1760317485039,3.2078,4130.1,4129.1,0.577]
[1760317485234,3.2078,4130.1,4129.9,0.43544]
[1760317485438,3.20012794,4130.4,4130.0,0.8085]
[1760317485738,3.20012794,4130.8,4130.6,0.577]
[1760317485938,3.20012794,4130.8,4130.0,0.2315]
[1760317485939,3.20208053,4130.8,4130.1,0.43542]
[1760317486141,3.20012794,4130.6,4130.1,0.43542]
[1760317486339,5.14713624,4130.3,4129.5,0.577]
[1760317486545,0.5972,4129.6,4128.9,0.5791473]
[1760317486739,0.5972,4129.3,4128.9,0.0021473]
[1760317487137,3.18791733,4129.7,4129.0,0.2315]
[1760317487448,3.11480447,4130.0,4129.0,0.8085]
[1760317487743,4.54993624,4129.8,4129.0,1.24404]
[1760317488041,3.11480447,4129.7,4129.3,0.4355]
[1760317488245,3.11480447,4129.7,4129.3,0.577]
[1760317488246,3.71200447,4129.7,4129.3,0.577]
[1760317488450,4.14748447,4129.7,4129.3,0.577]
[1760317488635,3.71200447,4129.7,4129.3,0.577]
[1760317488839,3.11480447,4129.7,4129.1,0.577]
[1760317489247,3.11480447,4129.7,4129.6,0.577]
[1760317489447,3.11480447,4129.7,4129.6,1.01248]
[1760317490143,3.2078,4130.1,4129.5,0.2315]
[1760317490144,3.2078,4130.1,4129.7,0.43546]
[1760317490445,0.4354,4130.4,4130.0,0.577]
[1760317490840,3.13357402,4130.3,4129.9,3.64324]
[1760317491150,3.56898402,4130.3,4129.9,3.2078]
[1760317491348,0.43543,4130.2,4130.0,0.577]
[1760317491644,3.16302275,4130.1,4130.0,0.5709]
[1760317491843,3.16302275,4130.1,4130.0,0.8019]
[1760317492153,1.08805,4132.2,4130.0,0.8019]
[1760317492154,0.43522,4132.1,4131.5,0.43527]
[1760317492343,3.2078,4132.4,4131.5,3.2078]
[1760317492545,0.43526,4131.7,4131.1,1.00621]
[1760317492847,4.17180566,4131.9,4131.1,0.5709]
[1760317493148,3.60548775,4131.9,4131.1,0.5709]
[1760317493550,3.60548775,4131.9,4131.3,0.43529]
[1760317493937,3.60548775,4131.9,4131.5,3.2078]
[1760317494139,0.43527,4131.7,4131.5,3.7787]
[1760317494552,0.43527,4131.7,4131.6,0.5709]
[1760317495244,0.43527,4131.7,4131.5,3.2078]
[1760317495245,3.17024775,4131.9,4131.0,3.4388]
[1760317495445,3.17024775,4131.9,4131.0,3.2078]
[1760317495446,0.5684,4131.1,4131.0,3.2078]
[1760317495652,0.43533,4131.0,4130.4,3.2078]
[1760317495851,3.20831791,4131.1,4130.7,0.43536]
[1760317496047,0.43528,4131.5,4131.0,1.00623]
[1760317496253,0.43528,4131.5,4131.0,0.66633]
[1760317496452,3.18678104,4131.3,4131.1,0.5709]
[1760317496644,3.18678104,4131.4,4131.0,0.43533]
[1760317496846,3.20988209,4131.9,4131.2,0.4353]
[1760317496847,3.18678104,4131.8,4131.2,0.4353]
[1760317497044,3.18678104,4131.5,4131.3,0.5709]
[1760317497250,3.18678104,4131.6,4131.5,0.5709]
[1760317497441,3.60704152,4131.8,4131.5,0.5709]
[1760317497753,0.00208209,4131.9,4131.4,3.2078]
[1760317497754,0.5684,4131.5,4131.4,3.2078]
[1760317498148,0.43529,4131.4,4131.0,0.5709]
[1760317498450,3.08207414,4131.3,4130.9,0.43534]
[1760317498756,3.08207414,4131.3,4130.9,0.5709]
[1760317498950,0.43525,4131.8,4131.3,0.43529]
[1760317499455,0.43525,4131.8,4131.7,0.5709]
[1760317499456,3.13644458,4131.8,4131.7,0.5709]
[1760317499654,3.20988209,4131.9,4131.6,0.43527]
[1760317499854,3.20988209,4131.9,4131.7,0.5709]
[1760317500152,3.20988209,4131.9,4131.8,0.5709]
[1760317500449,3.2078,4133.2,4133.1,0.5709]
[1760317500847,3.2078,4133.2,4133.0,0.43512]
[1760317501051,0.43514,4132.8,4132.7,3.2078]
[1760317501269,1.00525107,4132.8,4132.7,0.00301963]
[1760317501553,3.21328707,4132.8,4132.7,0.57391963]
[1760317501849,0.00171107,4132.8,4132.7,3.78171963]
[1760317507053,0.00171107,4132.8,4132.7,0.00301963]
[1760317507253,0.00171107,4132.8,4132.7,0.57391963]
[1760317507557,0.00171107,4132.8,4132.7,3.78171963]
[1760317508045,0.5684,4134.6,4134.2,1.00589]
[1760317508250,3.2078,4134.8,4134.2,0.5709]
[1760317508553,6.35819819,4134.8,4134.6,0.5709]
[1760317508755,3.2078,4134.8,4134.6,0.5709]
[1760317508960,3.15039819,4134.7,4134.5,0.43496]
[1760317509161,3.15039819,4134.7,4134.5,1.00586]
[1760317509162,3.15213136,4134.7,4134.5,1.00586]
[1760317509354,0.00173317,4134.7,4134.6,0.5709]
[1760317509554,1.00345,4133.7,4133.4,3.2078]
[1760317509751,1.00345,4133.7,4133.4,3.7787]
[1760317509752,0.5684,4133.7,4133.4,3.7787]
[1760317510062,3.10416096,4133.6,4133.5,3.2078]
[1760317510353,3.11121501,4133.7,4133.0,3.7787]
[1760317510561,1.00354,4132.8,4132.7,0.00301963]
[1760317510951,4.11475501,4132.8,4132.7,0.00301963]
[1760317511854,1.0036,4132.3,4132.2,3.2078]
[1760317512050,0.43523,4132.0,4131.6,0.43526]
[1760317512251,0.43524,4131.9,4131.5,3.7787]
[1760317512461,3.62390763,4131.9,4131.5,3.2078]
[1760317512766,0.4351,4133.3,4132.8,0.43514]
[1760317512952,3.2078,4133.6,4132.0,0.231]
[1760317512953,0.2143,4133.5,4132.0,3.7787]
[1760317513259,0.5684,4132.1,4132.0,3.2078]
[1760317513755,0.43518,4132.5,4132.1,0.5709]
[1760317513957,1.00358,4132.5,4132.1,0.5709]
[1760317514167,3.17490033,4132.4,4132.1,0.5709]
[1760317514348,3.61009033,4132.4,4132.1,0.5709]
[1760317514554,3.17490033,4132.4,4132.1,0.5709]
[1760317514752,3.17490033,4132.4,4132.2,0.4352]
[1760317515056,0.5684,4132.2,4132.0,3.2078]
[1760317515664,0.4352,4132.3,4132.0,3.2078]
[1760317515959,3.18407949,4132.2,4132.1,0.5709]
[1760317516159,3.18407949,4132.2,4132.1,1.00612]
[1760317516362,3.07498568,4132.6,4132.2,0.5709]
[1760317516558,3.07498568,4132.9,4132.0,3.2078]
[1760317516559,0.5684,4132.9,4132.0,3.2078]
[1760317516860,0.5684,4132.1,4132.0,3.2078]
[1760317517254,3.07498568,4132.1,4132.0,3.2078]
[1760317517451,3.64292,4133.0,4132.7,0.5709]
[1760317517657,0.5684,4133.5,4133.1,0.4351]
[1760317517854,0.5684,4134.6,4133.8,0.43504]
[1760317518060,0.435,4134.2,4133.8,3.2078]
[1760317518262,3.09966698,4133.9,4133.8,3.64283]
[1760317518460,3.09966698,4134.3,4133.8,3.2078]
[1760317518660,0.00173317,4134.7,4134.5,0.43496]
[1760317518867,0.00173317,4134.7,4134.6,0.5709]
[1760317519562,0.00173317,4134.7,4134.5,0.00288971]
[1760317519563,0.5684,4134.6,4134.5,0.00288971]